fUSD/lending_fUSD_20250525
["ID","MTS","AMOUNT","RATE_DAILY","PERIOD"]
[362295773,1748167843060,-420.0,0.00019999,2]
[362295774,1748167843070,-420.0,0.00019999,2]
[362295775,1748167843079,-420.0,0.00019999,2]
[362295776,1748167843088,-420.0,0.00019999,2]
[362295777,1748167843097,-420.0,0.00019999,2]
[362295778,1748167843106,-420.0,0.00019999,2]
[362295779,1748167843115,-74.66551184,0.00019999,2]
[362295780,1748167843132,-345.33448816,0.00019999,2]
[362295781,1748167843141,-424.39,0.00019999,2]
[362295782,1748167843150,-420.0,0.00019999,2]
[362295783,1748167843161,-420.0,0.00019999,2]
[362295784,1748167843170,-420.0,0.00019999,2]
[362295785,1748167843180,-420.0,0.00019999,2]
[362295786,1748167843189,-198.57,0.00019999,2]
[362295787,1748167843199,-420.0,0.00019999,2]
[362295788,1748167843208,-420.0,0.00019999,2]
[362295789,1748167843217,-420.0,0.00019999,2]
[362295790,1748167843226,-420.0,0.00019999,2]
[362295791,1748167843237,-420.0,0.00019999,2]
[362295792,1748167843246,-420.0,0.00019999,2]
[362295793,1748167843255,-420.0,0.00019999,2]
[362295794,1748167843264,-420.0,0.00019999,2]
[362295795,1748167843273,-420.0,0.00019999,2]
[362295796,1748167843283,-259.65372515,0.00019999,2]
[362295797,1748167844280,-262.44822189,0.00019994,2]
[362295798,1748167844291,-157.55177811,0.00019994,2]
[362295799,1748167844301,-420.0,0.00019998,2]
[362295800,1748167844311,-160.34627485,0.00019999,2]
[362295801,1748167844320,-420.0,0.00019999,2]
[362295802,1748167844329,-69.2222719,0.00019999,2]
[362295809,1748167845801,-2021.68906959,0.00019993,2]
[362295810,1748167845810,-2021.68906959,0.00019993,2]
[362295811,1748167845819,-2021.68906959,0.00019993,2]
[362295812,1748167845828,-2021.68906959,0.00019993,2]
[362295813,1748167845838,-2021.68906959,0.00019993,2]
[362295814,1748167845847,-2021.68906959,0.00019993,2]
[362295815,1748167845856,-2021.68906959,0.00019993,2]
[362295816,1748167845865,-2021.68906959,0.00019993,2]
[362295817,1748167845875,-350.7777281,0.00019999,2]
[362295818,1748167845884,-420.0,0.00019999,2]
[362295819,1748167845897,-420.0,0.00019999,2]
[362295820,1748167845907,-420.0,0.00019999,2]
[362295821,1748167845916,-384.17,0.00019999,2]
[362295822,1748167845926,-420.0,0.00019999,2]
[362295823,1748167845936,-420.0,0.00019999,2]
[362295824,1748167845946,-420.0,0.00019999,2]
[362295825,1748167845955,-420.0,0.00019999,2]
[362295826,1748167845966,-420.0,0.00019999,2]
[362295827,1748167845978,-420.0,0.00019999,2]
[362295828,1748167845990,-420.0,0.00019999,2]
[362295829,1748167846001,-420.0,0.00019999,2]
[362295830,1748167846012,-420.0,0.00019999,2]
[362295831,1748167846022,-420.0,0.00019999,2]
[362295832,1748167846032,-182.09979628,0.00019999,2]
[362295833,1748167846043,-1383.98,0.00019999,2]
[362295834,1748167846052,-1383.98,0.00019999,2]
[362295835,1748167846061,-1383.98,0.00019999,2]
[362295836,1748167846072,-1383.98,0.00019999,2]
[362295837,1748167846083,-1383.98,0.00019999,2]
[362295838,1748167846092,-1383.98,0.00019999,2]
[362295839,1748167846103,-627.68265791,0.00019999,2]
[362295842,1748168084842,-408.40782156,0.00017085,2]
[362295843,1748168087986,-306.47689016,0.00017085,2]
[362295844,1748168089442,-95.54528828,0.00017085,2]
[362295845,1748168262411,443.17,0.00013699,2]
[362295852,1748168764665,160.06,0.00015112,2]
[362295860,1748168836130,-200.0,0.0001767,2]
[362295861,1748168836156,-200.0,0.00017787,2]
[362295862,1748168836180,-250.0,0.00017787,2]
[362295863,1748168836204,-93.02807664,0.00018022,2]
[362295865,1748168842160,-455.47566989,0.00018022,2]
[362295866,1748168850096,-606.89582699,0.00018022,2]
[362295867,1748168850117,-216.06792533,0.000185,2]
[362295868,1748168850140,-36.5986791,0.00018833,2]
[362295885,1748169031572,-315.65679212,0.00018606,2]
[362295886,1748169031679,-808.14713488,0.00018606,2]
[362295887,1748169031690,-247.50751148,0.000187,5]
[362295888,1748169031892,-800.49248852,0.000187,5]
[362295889,1748169031903,-1486.24894322,0.00018765,2]
[362295909,1748169037530,-595.92610002,0.00018765,2]
[362295910,1748169037586,-1371.77495676,0.00018765,2]
[362295911,1748169037598,-132.1813209,0.00018833,2]
[362295912,1748169037609,-200.0,0.00018866,2]
[362295913,1748169037621,-1000.0,0.0001889,2]
[362295914,1748169037630,-98.56868776,0.00018999,2]
[362295915,1748169037746,-335.19131224,0.00018999,2]
[362295916,1748169037756,-150.0,0.00018999,7]
[362295917,1748169037765,-252.85780487,0.00019,2]
[362295918,1748169037775,-153.30664219,0.00019164,2]
[362295919,1748169037784,-500.0,0.00019164,2]
[362295920,1748169037793,-1200.0,0.00019306,2]
[362295921,1748169037803,-300.0,0.00019307,2]
[362295922,1748169037812,-200.0,0.00019308,2]
[362295923,1748169037822,-250.0,0.00019308,2]
[362295924,1748169037831,-810.43,0.00019349,2]
[362295925,1748169037841,-836.0142407,0.000194,2]
[362295926,1748169037852,-133.6757593,0.000194,2]
[362295927,1748169037862,-152.0,0.00019404,3]
[362295928,1748169037872,-165.08,0.00019456,2]
[362295929,1748169037881,-155.430177,0.00019599,2]
[362295930,1748169037891,-205.0,0.00019689,2]
[362295931,1748169037900,-1000.0,0.000197,2]
[362295932,1748169037910,-207.4,0.00019787,2]
[362295933,1748169037919,-3345.84270386,0.000198,2]
[362296240,1748169045539,-259.60840767,0.000198,2]
[362296241,1748169045894,-7477.54889,0.000198,2]
[362296242,1748169045911,-19153.55459914,0.000198,2]
[362296243,1748169045927,-382.428,0.00019898,2]
[362296244,1748169045937,-182.606,0.00019898,2]
[362296245,1748169045947,-219.0,0.00019899,2]
[362296246,1748169045957,-9254.58539249,0.000199,7]
[362296247,1748169045967,-169.77748008,0.000199,2]
[362296248,1748169045976,-169.77748008,0.000199,2]
[362296249,1748169045986,-169.77748008,0.000199,2]
[362296250,1748169045995,-169.77748008,0.000199,2]
[362296251,1748169046005,-200.63651108,0.000199,2]
[362296252,1748169046015,-696.66494995,0.000199,3]
[362296253,1748169046025,-173.23150445,0.00019973,2]
[362296270,1748169046291,-502.93448441,0.00019973,2]
[362296272,1748169046301,-500.0,0.00019973,2]
[362296274,1748169046310,-2194.4954648,0.0001999,2]
[362296275,1748169046319,-8672.75317336,0.0001999,2]
[362296287,1748169225805,-202.2297553,0.00017088,2]
[362296288,1748169229263,-224.9289075,0.00017088,2]
[362296289,1748169231460,-325.4813372,0.00017088,2]
[362296290,1748169361297,129.4273673,0.00013699,2]
[362296291,1748169361320,300.1126327,0.00013699,2]
[362296295,1748169454315,250.0,0.00015,2]
[362296296,1748169455390,250.0,0.00017,2]
[362296313,1748169877358,-50.0,0.00017,2]
[362296314,1748169877380,-241.39269087,0.00017,2]
[362296315,1748169878735,-365.58529554,0.00017,2]
[362296317,1748169881163,-252.09924603,0.00017,2]
[362296319,1748169884602,-566.71,0.00017,2]
[362296321,1748169885973,-289.45909673,0.00017,2]
[362296324,1748169891058,-144.75367083,0.00017,2]
[362296327,1748169948216,30000.0,0.00026,120]
[362296328,1748169971647,205.0,0.00016689,2]
[362296335,1748170051133,-250.0,0.000187,2]
[362296336,1748170051154,-250.0,0.000187,2]
[362296337,1748170051177,-132.6037272,0.00018959,2]
[362296338,1748170054106,-37.0162728,0.00018959,2]
[362296339,1748170054129,-166.49,0.00018977,2]
[362296340,1748170054151,-207.4,0.00018998,2]
[362296341,1748170054173,-448.57885233,0.00018999,2]
[362296345,1748170231914,-161.72011444,0.00018901,2]
[362296346,1748170231924,-510.36988356,0.00018957,2]
[362296763,1748170237696,-489.63011644,0.00018957,2]
[362296765,1748170237706,-418.29517574,0.00018999,2]
[362296767,1748170237715,-250.0,0.00019,2]
[362296768,1748170237725,-181.64,0.00019,2]
[362296770,1748170237735,-181.64,0.00019,2]
[362296771,1748170237744,-181.64,0.00019,2]
[362296773,1748170237754,-181.64,0.00019,2]
[362296775,1748170237764,-181.64,0.00019,2]
[362296776,1748170237773,-350.0,0.00019,2]
[362296778,1748170237782,-216.88,0.00019001,2]
[362296779,1748170237792,-500.0,0.00019164,2]
[362296781,1748170237801,-887.0,0.00019351,2]
[362296783,1748170237811,-752.64,0.00019352,2]
[362296784,1748170237821,-155.430177,0.00019599,2]
[362296786,1748170237831,-211.739034,0.00019601,2]
[362296787,1748170237840,-193.89186343,0.00019633,2]
[362296789,1748170237850,-574.88909662,0.000197,2]
[362296791,1748170237860,-300.0,0.00019888,2]
[362296792,1748170237874,-193.64628905,0.00019889,2]
[362296794,1748170237883,-167.62513039,0.00019889,2]
[362296796,1748170237892,-159.57698987,0.00019889,2]
[362296797,1748170237903,-305.943,0.00019897,2]
[362296799,1748170237912,-182.60636742,0.00019897,2]
[362296800,1748170237921,-500.0,0.00019897,2]
[362296802,1748170237931,-830.91,0.000199,2]
[362296804,1748170237942,-484.29056028,0.000199,2]
[362296805,1748170237952,-193.64628904,0.000199,2]
[362296807,1748170237966,-169.77748012,0.000199,2]
[362296809,1748170237975,-204.20977125,0.000199,2]
[362296810,1748170237985,-155.82008272,0.00019973,2]
[362296812,1748170237994,-296.92114305,0.00019973,2]
[362296813,1748170238003,-500.0,0.00019973,2]
[362296815,1748170238012,-501.63788533,0.00019973,2]
[362296817,1748170238022,-500.0,0.00019973,2]
[362296818,1748170238031,-151.0,0.00019978,2]
[362296820,1748170238041,-264.09002405,0.00019978,2]
[362296821,1748170238050,-668.65185757,0.00019978,2]
[362296823,1748170238061,-673.19,0.00019978,2]
[362296825,1748170238071,-673.19,0.00019978,2]
[362296826,1748170238080,-4769.6867812,0.00019982,2]
[362296828,1748170238089,-3407.2224657,0.00019986,2]
[362296875,1748170239894,-885.4240957,0.00019986,2]
[362296876,1748170239905,-802.92776129,0.00019986,2]
[362296877,1748170239916,-2828.28829449,0.00019986,2]
[362296878,1748170239947,-184.39028572,0.00019986,2]
[362296879,1748170239957,-3338.5661217,0.00019986,2]
[362296880,1748170239966,-2861.5259018,0.00019986,2]
[362296881,1748170239976,-2384.485682,0.00019986,2]
[362296882,1748170239986,-471.61501186,0.00019986,2]
[362296883,1748170239995,-500.0,0.00019986,2]
[362296884,1748170240004,-222.25978602,0.00019986,2]
[362296885,1748170240013,-502.59155196,0.00019986,2]
[362296886,1748170240024,-500.0,0.00019986,2]
[362296887,1748170240034,-500.0,0.00019986,2]
[362296888,1748170240044,-500.0,0.00019986,2]
[362296889,1748170240054,-500.0,0.00019986,2]
[362296890,1748170240063,-500.0,0.00019986,2]
[362296891,1748170240073,-500.0,0.00019986,2]
[362296892,1748170240082,-500.0,0.00019986,2]
[362296893,1748170240091,-500.0,0.00019986,2]
[362296894,1748170240100,-500.0,0.00019986,2]
[362296895,1748170240109,-500.0,0.00019986,2]
[362296896,1748170240118,-500.0,0.00019986,2]
[362296897,1748170240127,-500.0,0.00019986,2]
[362296898,1748170240136,-500.0,0.00019986,2]
[362296899,1748170240145,-500.0,0.00019986,2]
[362296900,1748170240155,-500.0,0.00019986,2]
[362296901,1748170240165,-500.0,0.00019986,2]
[362296902,1748170240176,-500.0,0.00019986,2]
[362296903,1748170240185,-500.0,0.00019986,2]
[362296904,1748170240194,-500.0,0.00019986,2]
[362296905,1748170240204,-500.0,0.00019986,2]
[362296906,1748170240213,-500.0,0.00019986,2]
[362296907,1748170240223,-500.0,0.00019986,2]
[362296908,1748170240232,-500.0,0.00019986,2]
[362296909,1748170240242,-500.0,0.00019986,2]
[362296910,1748170240251,-500.0,0.00019986,2]
[362296911,1748170240261,-500.0,0.00019986,2]
[362296912,1748170240274,-500.0,0.00019986,2]
[362296913,1748170240284,-500.0,0.00019986,2]
[362296914,1748170240293,-500.0,0.00019986,2]
[362296915,1748170240302,-500.0,0.00019986,2]
[362296916,1748170240311,-500.0,0.00019986,2]
[362296917,1748170240321,-500.0,0.00019986,2]
[362296918,1748170240330,-500.0,0.00019986,2]
[362296919,1748170240339,-500.0,0.00019986,2]
[362296920,1748170240348,-500.0,0.00019986,2]
[362296921,1748170240358,-500.0,0.00019986,2]
[362296922,1748170240367,-500.0,0.00019986,2]
[362296923,1748170240377,-500.0,0.00019986,2]
[362296924,1748170240386,-500.0,0.00019986,2]
[362296925,1748170240395,-500.0,0.00019986,2]
[362296926,1748170240404,-500.0,0.00019986,2]
[362296927,1748170240414,-338.0835297,0.00019986,2]
[362296928,1748170240424,-500.0,0.00019986,2]
[362296929,1748170240433,-500.0,0.00019986,2]
[362296930,1748170240443,-500.0,0.00019986,2]
[362296931,1748170240452,-500.0,0.00019986,2]
[362296932,1748170240461,-500.0,0.00019986,2]
[362296933,1748170240471,-500.0,0.00019986,2]
[362296934,1748170240480,-247.73267974,0.00019987,2]
[362296935,1748170240489,-538054.78787018,0.00019987,2]
[362296936,1748170240498,-2119.47018878,0.00019987,2]
[362296937,1748170240507,-158.98165945,0.00019987,2]
[362296938,1748170240516,-2119.47018878,0.00019987,2]
[362296939,1748170240526,-210.85751559,0.00019987,2]
[362296940,1748170240536,-179.94153324,0.00019987,2]
[362296941,1748170240545,-2119.47018878,0.00019987,2]
[362296942,1748170240554,-2119.47018878,0.00019987,2]
[362296944,1748170240564,-2119.47018878,0.00019987,2]
[362296946,1748170240573,-2119.47018878,0.00019987,2]
[362296948,1748170240582,-2119.47018878,0.00019987,2]
[362296950,1748170240591,-2119.47018878,0.00019987,2]
[362296952,1748170240601,-2119.47018878,0.00019987,2]
[362296954,1748170240610,-2119.47018878,0.00019987,2]
[362296956,1748170240619,-2119.47018878,0.00019987,2]
[362296958,1748170240628,-2119.47018878,0.00019987,2]
[362296960,1748170240637,-2119.47018878,0.00019987,2]
[362296962,1748170240646,-2119.47018878,0.00019987,2]
[362296964,1748170240655,-2119.47018878,0.00019987,2]
[362296965,1748170240664,-2119.47018878,0.00019987,2]
[362296966,1748170240675,-2119.47018878,0.00019987,2]
[362296967,1748170240684,-2119.47018878,0.00019987,2]
[362296968,1748170240693,-2119.47018878,0.00019987,2]
[362296969,1748170240703,-7085.7234943,0.00019987,2]
[362296970,1748170240712,-7085.7234943,0.00019987,2]
[362296971,1748170240721,-7085.7234943,0.00019987,2]
[362296972,1748170240730,-7085.7234943,0.00019987,2]
[362296973,1748170240739,-7085.7234943,0.00019987,2]
[362296974,1748170240749,-7085.7234943,0.00019987,2]
[362296975,1748170240758,-7085.7234943,0.00019987,2]
[362296976,1748170240767,-7085.7234943,0.00019987,2]
[362296977,1748170240776,-7085.7234943,0.00019987,2]
[362296978,1748170240785,-7085.7234943,0.00019987,2]
[362296979,1748170240794,-420.0,0.00019988,2]
[362296980,1748170240803,-420.0,0.00019988,2]
[362296981,1748170240812,-420.0,0.00019988,2]
[362296982,1748170240823,-420.0,0.00019988,2]
[362296983,1748170240833,-420.0,0.00019988,2]
[362296984,1748170240842,-420.0,0.00019988,2]
[362296985,1748170240851,-420.0,0.00019988,2]
[362296986,1748170240865,-420.0,0.00019988,2]
[362296987,1748170240874,-420.0,0.00019988,2]
[362296988,1748170240883,-420.0,0.00019988,2]
[362296989,1748170240893,-668.89,0.00019988,2]
[362296990,1748170240905,-668.89,0.00019988,2]
[362296991,1748170240914,-668.89,0.00019988,2]
[362296992,1748170240925,-420.0,0.00019988,2]
[362296993,1748170240935,-420.0,0.00019988,2]
[362296994,1748170240945,-420.0,0.00019988,2]
[362296995,1748170240955,-317.52346781,0.00019988,2]
[362296996,1748170240965,-451.83,0.00019988,2]
[362296997,1748170240974,-420.0,0.00019988,2]
[362296998,1748170240983,-198.35,0.00019988,2]
[362296999,1748170241206,-156.719649,0.00019988,2]
[362297000,1748170241217,-420.0,0.00019988,2]
[362297001,1748170241226,-519.83,0.00019988,2]
[362297002,1748170241236,-386.012001,0.00019988,2]
[362297003,1748170241245,-386.012001,0.00019988,2]
[362297004,1748170241255,-521.81752715,0.00019988,2]
[362297005,1748170241266,-239.99099029,0.00019988,2]
[362297006,1748170241277,-195.17094552,0.00019989,2]
[362297007,1748170241287,-420.0,0.00019989,2]
[362297008,1748170241298,-420.0,0.00019989,2]
[362297009,1748170241308,-432.30617889,0.00019989,2]
[362297010,1748170241317,-437.03033696,0.00019989,2]
[362297011,1748170241327,-420.0,0.00019989,2]
[362297012,1748170241336,-420.0,0.00019989,2]
[362297013,1748170241346,-420.0,0.00019989,2]
[362297014,1748170241355,-420.0,0.00019989,2]
[362297015,1748170241364,-535.28549879,0.00019989,2]
[362297016,1748170241373,-420.0,0.00019989,2]
[362297017,1748170241382,-530.9905292,0.00019989,2]
[362297018,1748170241391,-420.0,0.00019989,2]
[362297019,1748170241401,-420.0,0.00019989,2]
[362297020,1748170241411,-420.0,0.00019989,2]
[362297021,1748170241423,-420.0,0.00019989,2]
[362297022,1748170241432,-420.0,0.00019989,2]
[362297023,1748170241441,-420.0,0.00019989,2]
[362297024,1748170241450,-420.0,0.00019989,2]
[362297025,1748170241459,-420.0,0.00019989,2]
[362297026,1748170241469,-420.0,0.00019989,2]
[362297027,1748170241478,-420.0,0.00019989,2]
[362297028,1748170241487,-420.0,0.00019989,2]
[362297029,1748170241496,-420.0,0.00019989,2]
[362297030,1748170241505,-420.0,0.00019989,2]
[362297031,1748170241515,-420.0,0.00019989,2]
[362297032,1748170241524,-420.0,0.00019989,2]
[362297033,1748170241533,-338.76303718,0.00019989,2]
[362297034,1748170241542,-450.74507522,0.00019989,2]
[362297035,1748170241552,-433.7745908,0.00019989,2]
[362297036,1748170241562,-582.93,0.00019989,2]
[362297037,1748170241572,-420.0,0.00019989,2]
[362297038,1748170241582,-429.75325753,0.00019989,2]
[362297039,1748170241591,-420.0,0.00019989,2]
[362297040,1748170241602,-420.0,0.00019989,2]
[362297041,1748170241611,-420.0,0.00019989,2]
[362297042,1748170241621,-435.09489298,0.00019989,2]
[362297043,1748170241632,-482.62067164,0.00019989,2]
[362297044,1748170241641,-420.0,0.00019989,2]
[362297045,1748170241651,-420.0,0.00019989,2]
[362297046,1748170241661,-427.83057802,0.00019989,2]
[362297047,1748170241672,-514.04951722,0.00019989,2]
[362297048,1748170241681,-420.0,0.00019989,2]
[362297049,1748170241690,-370.0,0.00019989,2]
[362297050,1748170241699,-420.0,0.00019989,2]
[362297051,1748170241708,-420.0,0.00019989,2]
[362297052,1748170241717,-420.0,0.00019989,2]
[362297053,1748170241729,-429.58423987,0.00019989,2]
[362297054,1748170241738,-420.0,0.00019989,2]
[362297055,1748170241747,-420.0,0.00019989,2]
[362297056,1748170241757,-420.0,0.00019989,2]
[362297057,1748170241768,-420.0,0.00019989,2]
[362297058,1748170241779,-420.0,0.00019989,2]
[362297059,1748170241788,-420.0,0.00019989,2]
[362297060,1748170241797,-420.0,0.00019989,2]
[362297061,1748170241806,-420.0,0.00019989,2]
[362297062,1748170241816,-214.6801448,0.00019989,2]
[362297063,1748170241825,-336.7641237,0.00019989,2]
[362297064,1748170241835,-422.29109614,0.00019989,2]
[362297065,1748170241844,-424.00522846,0.00019989,2]
[362297066,1748170241855,-426.74319847,0.00019989,2]
[362297067,1748170241864,-421.58123016,0.00019989,2]
[362297068,1748170241878,-184.83793239,0.00019989,2]
[362297069,1748170241888,-420.0,0.00019989,2]
[362297070,1748170241897,-420.0,0.00019989,2]
[362297071,1748170241906,-491.3,0.00019989,2]
[362297072,1748170241918,-420.0,0.00019989,2]
[362297073,1748170241930,-420.0,0.00019989,2]
[362297074,1748170241938,-420.0,0.00019989,2]
[362297075,1748170241948,-420.0,0.00019989,2]
[362297076,1748170241958,-420.0,0.00019989,2]
[362297077,1748170241967,-420.0,0.00019989,2]
[362297078,1748170241977,-451.47552792,0.00019989,2]
[362297079,1748170241987,-420.0,0.00019989,2]
[362297080,1748170241995,-463.67013643,0.00019989,2]
[362297081,1748170242005,-508.12,0.00019989,2]
[362297082,1748170242015,-271.55074809,0.00019989,2]
[362297083,1748170242024,-2724.54,0.00019989,2]
[362297084,1748170242034,-420.0,0.00019989,2]
[362297085,1748170242043,-1003.69,0.00019989,2]
[362297086,1748170242052,-500.0,0.00019989,2]
[362297087,1748170242062,-420.0,0.00019989,2]
[362297088,1748170242073,-420.0,0.00019989,2]
[362297089,1748170242083,-420.0,0.00019989,2]
[362297090,1748170242093,-420.0,0.00019989,2]
[362297091,1748170242102,-456.4386329,0.00019989,2]
[362297092,1748170242112,-2360.4,0.00019989,2]
[362297093,1748170242121,-420.0,0.00019989,2]
[362297094,1748170242130,-420.0,0.00019989,2]
[362297095,1748170242139,-420.0,0.00019989,2]
[362297096,1748170242149,-420.0,0.00019989,2]
[362297097,1748170242158,-420.0,0.00019989,2]
[362297098,1748170242167,-420.0,0.00019989,2]
[362297099,1748170242178,-420.0,0.00019989,2]
[362297100,1748170242187,-456.77988898,0.00019989,2]
[362297101,1748170242196,-420.0,0.00019989,2]
[362297102,1748170242205,-420.0,0.00019989,2]
[362297103,1748170242214,-561.31805234,0.00019989,2]
[362297104,1748170242223,-444.66764914,0.00019989,2]
[362297105,1748170242234,-420.0,0.00019989,2]
[362297106,1748170242243,-1131.85,0.00019989,2]
[362297107,1748170242252,-420.0,0.00019989,2]
[362297108,1748170242261,-420.0,0.00019989,2]
[362297109,1748170242271,-500.0,0.00019989,2]
[362297110,1748170242280,-150.0,0.00019989,2]
[362297111,1748170242290,-163.97940304,0.00019989,2]
[362297112,1748170242300,-420.0,0.00019989,2]
[362297113,1748170242309,-420.0,0.00019989,2]
[362297114,1748170242318,-500.0,0.00019989,2]
[362297115,1748170242327,-420.0,0.00019989,2]
[362297116,1748170242337,-482.06454118,0.00019989,2]
[362297117,1748170242346,-432.12909076,0.00019989,2]
[362297118,1748170242356,-420.0,0.00019989,2]
[362297119,1748170242365,-420.0,0.00019989,2]
[362297120,1748170242374,-1953.24,0.00019989,2]
[362297121,1748170242384,-420.0,0.00019989,2]
[362297122,1748170242393,-420.0,0.00019989,2]
[362297123,1748170242402,-420.0,0.00019989,2]
[362297124,1748170242411,-420.0,0.00019989,2]
[362297125,1748170242421,-420.0,0.00019989,2]
[362297126,1748170242431,-433.38140389,0.00019989,2]
[362297127,1748170242440,-547.73,0.00019989,2]
[362297128,1748170242450,-342.15,0.00019989,2]
[362297129,1748170242459,-420.0,0.00019989,2]
[362297130,1748170242468,-420.0,0.00019989,2]
[362297131,1748170242477,-420.0,0.00019989,2]
[362297132,1748170242486,-890.41,0.00019989,2]
[362297133,1748170242495,-420.0,0.00019989,2]
[362297134,1748170242504,-420.0,0.00019989,2]
[362297135,1748170242513,-487.27020787,0.00019989,2]
[362297136,1748170242522,-420.0,0.00019989,2]
[362297137,1748170242531,-420.0,0.00019989,2]
[362297139,1748170242541,-753.93,0.00019989,2]
[362297140,1748170242551,-420.0,0.00019989,2]
[362297141,1748170242560,-877.48,0.00019989,2]
[362297142,1748170242569,-420.0,0.00019989,2]
[362297143,1748170242579,-420.0,0.00019989,2]
[362297144,1748170242589,-431.43567538,0.00019989,2]
[362297145,1748170242598,-555.01240878,0.00019989,2]
[362297146,1748170242607,-420.0,0.00019989,2]
[362297147,1748170242616,-434.29255306,0.00019989,2]
[362297148,1748170242625,-420.0,0.00019989,2]
[362297150,1748170242634,-420.0,0.00019989,2]
[362297152,1748170242643,-420.0,0.00019989,2]
[362297154,1748170242652,-420.0,0.00019989,2]
[362297156,1748170242661,-420.0,0.00019989,2]
[362297158,1748170242671,-420.0,0.00019989,2]
[362297160,1748170242680,-420.0,0.00019989,2]
[362297162,1748170242690,-420.0,0.00019989,2]
[362297164,1748170242700,-420.0,0.00019989,2]
[362297165,1748170242709,-150.0,0.00019989,2]
[362297167,1748170242718,-150.0,0.00019989,2]
[362297168,1748170242727,-429.89055424,0.00019989,2]
[362297169,1748170242738,-420.0,0.00019989,2]
[362297170,1748170242747,-500.41,0.00019989,2]
[362297171,1748170242756,-386.012001,0.00019989,2]
[362297172,1748170242766,-475.25,0.00019989,2]
[362297173,1748170242776,-420.0,0.00019989,2]
[362297174,1748170242786,-500.0,0.0001999,2]
[362297175,1748170242796,-154.52468156,0.0001999,2]
[362297176,1748170242807,-500.0,0.0001999,2]
[362297177,1748170242816,-200.0,0.0001999,2]
[362297178,1748170242826,-1093.6319277,0.0001999,2]
[362297179,1748170242836,-1189.0,0.0001999,2]
[362297180,1748170242846,-152.248227,0.0001999,2]
[362297181,1748170242857,-151.0,0.0001999,2]
[362297182,1748170242867,-151.0,0.0001999,2]
[362297183,1748170242880,-151.0,0.0001999,2]
[362297184,1748170242889,-157.698606,0.0001999,2]
[362297185,1748170242899,-151.0,0.0001999,2]
[362297186,1748170242908,-151.0,0.0001999,2]
[362297187,1748170242918,-378.854176,0.0001999,2]
[362297188,1748170242928,-378.854176,0.0001999,2]
[362297189,1748170242938,-239.99099029,0.0001999,2]
[362297190,1748170242948,-239.99099029,0.0001999,2]
[362297191,1748170242957,-157.908693,0.0001999,2]
[362297192,1748170242966,-420.0,0.00019996,2]
[362297193,1748170242976,-151.0,0.00019996,2]
[362297194,1748170242985,-407.06,0.00019996,2]
[362297195,1748170242994,-151.0,0.00019996,2]
[362297196,1748170243003,-151.0,0.00019996,2]
[362297197,1748170243013,-259.21,0.00019996,2]
[362297198,1748170243023,-195.04,0.00019996,2]
[362297199,1748170243032,-420.0,0.00019996,2]
[362297200,1748170243042,-151.0,0.00019996,2]
[362297201,1748170243051,-151.0,0.00019996,2]
[362297202,1748170243060,-420.0,0.00019996,2]
[362297203,1748170243070,-151.0,0.00019996,2]
[362297204,1748170243080,-151.0,0.00019996,2]
[362297205,1748170243089,-151.0,0.00019996,2]
[362297206,1748170243098,-1276.6353565,0.00019996,2]
[362297207,1748170243107,-420.0,0.00019996,2]